bitfinex/quotes_SOLUSD_20250209
["timestamp","ask_amount","ask_price","bid_price","bid_amount"]
[1739072670611,18.21992834,205.41,205.32,18.21992834]
[1739072670816,18.21992834,205.35,205.29,9.72853345]
[1739072671132,18.21992834,205.4,205.23,0.73055233]
[1739072671133,18.21992834,205.41,205.32,18.21992834]
[1739072671331,0.03,205.33,205.31,9.72853345]
[1739072671532,18.21992834,205.38,205.31,9.72853345]
[1739072671827,18.21992834,205.38,205.29,18.21992834]
[1739072671828,18.21992834,205.32,205.22,0.25098]
[1739072672028,14.45421868,205.43,205.29,1.0]
[1739072672230,18.21992834,205.32,205.27,1.0]
[1739072672537,18.21992834,205.32,205.25,1.0]
[1739072673042,18.21992834,205.31,205.25,1.0]
[1739072673229,18.21992834,205.27,205.25,1.0]
[1739072673429,18.21992834,205.27,205.23,22.63723516]
[1739072673626,18.21992834,205.25,205.23,22.63723516]
[1739072673940,18.21992834,205.25,205.23,58.10429266]
[1739072675325,18.21992834,205.25,205.21,7.26375658]
[1739072675527,18.21992834,205.23,205.21,7.26375658]
[1739072676548,18.21992834,205.23,205.17,8.26375658]
[1739072676929,1.21061829,205.31,205.28,1.0]
[1739072677146,6.4923,205.39,205.34,1.0]
[1739072677363,18.21992834,205.38,205.32,1.0]
[1739072677528,18.21992834,205.38,205.34,1.0]
[1739072677723,6.4923,205.39,205.33,1.0]
[1739072677928,18.21992834,205.34,205.3,1.0]
[1739072678131,18.21992834,205.36,205.32,1.0]
[1739072678849,18.21992834,205.36,205.35,1.0]
[1739072679060,18.21992834,205.38,205.35,1.0]
[1739072679238,18.21992834,205.4,205.38,1.0]
[1739072679442,12.8701,205.46,205.38,1.0]
[1739072679443,18.21992834,205.42,205.38,1.0]
[1739072680554,18.21992834,205.44,205.42,1.0]
[1739072680727,24.71222834,205.46,205.44,1.0]
[1739072680926,24.71222834,205.46,205.42,1.0]
[1739072681241,18.21992834,205.48,205.44,1.0]
[1739072681858,6.4923,205.53,205.49,1.0]
[1739072681859,18.21992834,205.5,205.49,1.0]
[1739072682037,28.95184285,205.61,205.52,1.0]
[1739072682230,28.95184285,205.61,205.45,13.41184853]
[1739072682231,18.21992834,205.65,205.59,1.0]
[1739072682428,18.21992834,205.61,205.59,1.0]
[1739072682653,18.21992834,205.61,205.55,1.0]
[1739072682824,19.21992834,205.63,205.57,1.0]
[1739072683133,18.21992834,205.61,205.55,1.0]
[1739072683335,18.21992834,205.59,205.53,20.35130944]
[1739072683541,18.21992834,205.61,205.58,0.35130944]
[1739072683741,18.21992834,205.61,205.6,0.35130944]
[1739072684052,0.03,205.62,205.6,0.35130944]
[1739072684349,0.03,205.62,205.6,18.57123778]
[1739072684735,0.03,205.62,205.61,20.0]
[1739072684933,0.03,205.62,205.6,18.57123778]
[1739072685137,1.0,205.63,205.62,13.76315797]
[1739072685358,1.0,205.63,205.62,31.98308631]
[1739072685659,1.0,205.63,205.62,36.84638631]
[1739072686033,182.86,205.78,205.76,0.35130944]
[1739072686679,182.86,205.78,205.77,20.0]
[1739072686891,182.36,205.78,205.77,38.21992834]
[1739072687064,182.36,205.78,205.77,31.75726687]
[1739072687372,182.36,205.78,205.77,32.88275687]
[1739072687548,182.36,205.78,205.77,31.75726687]
[1739072687748,106.7611,205.78,205.77,23.07962834]
[1739072688074,44.2429,205.78,205.77,24.07962834]
[1739072688469,44.2429,205.78,205.77,18.21992834]
[1739072688675,44.2429,205.78,205.77,29.47954197]
[1739072688870,44.2429,205.78,205.76,0.35130944]
[1739072689676,44.2429,205.78,205.72,0.35130944]
[1739072689902,29.47954197,205.76,205.69,0.35130944]
[1739072690088,13.41184853,205.75,205.69,0.35130944]
[1739072690373,13.41184853,205.73,205.68,0.35130944]
[1739072690560,29.47954197,205.7,205.62,0.35130944]
[1739072690754,29.47954197,205.7,205.64,0.35130944]
[1739072690953,29.47954197,205.7,205.59,30.47954197]
[1739072690954,80.29764197,205.78,205.73,0.35130944]
[1739072691164,44.2429,205.78,205.77,0.35130944]
[1739072692555,44.2429,205.78,205.71,29.47954197]
[1739072692556,44.2429,205.78,205.75,0.35130944]
[1739072692753,29.47954197,205.77,205.73,0.35130944]
[1739072692981,29.47954197,205.75,205.71,0.35130944]
[1739072693366,44.2429,205.78,205.77,0.35130944]
[1739072694893,44.2429,205.78,205.71,0.35130944]
[1739072695186,29.47954197,205.73,205.68,0.35130944]
[1739072695351,13.41184853,205.77,205.68,0.35130944]
[1739072695352,29.47954197,205.69,205.68,0.35130944]
[1739072695681,29.47954197,205.69,205.65,0.35130944]
[1739072695866,29.47954197,205.66,205.62,0.35130944]
[1739072696382,29.47954197,205.66,205.64,0.35130944]
[1739072696566,29.47954197,205.7,205.67,0.35130944]
[1739072697078,5.82645612,205.7,205.65,0.35130944]
[1739072697375,5.82645612,205.7,205.68,0.35130944]
[1739072697574,5.82645612,205.7,205.66,0.35130944]
[1739072697895,29.47954197,205.68,205.66,0.35130944]
[1739072698096,29.47954197,205.68,205.62,0.35130944]
[1739072698395,29.47954197,205.63,205.58,0.35130944]
[1739072698567,29.47954197,205.61,205.59,0.12549]
[1739072698755,29.47954197,205.61,205.58,0.35130944]
[1739072698956,29.47954197,205.59,205.55,0.41430944]
[1739072699156,29.47954197,205.57,205.55,0.063]
[1739072700259,29.47954197,205.57,205.49,0.35130944]
[1739072700260,13.41184853,205.56,205.46,0.35130944]
[1739072700485,29.47954197,205.47,205.46,0.47679944]
[1739072700694,29.47954197,205.51,205.5,0.35130944]
[1739072701099,29.47954197,205.55,205.54,0.35130944]
[1739072701274,29.47954197,205.57,205.56,0.35130944]
[1739072701471,29.47954197,205.57,205.52,0.35130944]
[1739072701673,29.47954197,205.54,205.52,0.35130944]
[1739072702076,29.47954197,205.56,205.52,0.35130944]
[1739072702401,29.47954197,205.58,205.56,0.35130944]
[1739072702685,29.47954197,205.58,205.5,0.35130944]
[1739072702897,29.47954197,205.58,205.46,29.47954197]
[1739072702898,29.47954197,205.54,205.48,0.35130944]
[1739072703073,29.47954197,205.56,205.52,0.35130944]
[1739072703264,4.8643,205.58,205.5,0.35130944]
[1739072703265,29.47954197,205.54,205.5,0.35130944]
[1739072703465,29.47954197,205.54,205.48,0.35130944]
[1739072703666,29.47954197,205.54,205.49,0.35130944]
[1739072704369,29.47954197,205.56,205.55,0.35130944]
[1739072704573,29.47954197,205.56,205.52,0.35130944]
[1739072704873,11.0685,205.53,205.46,0.35130944]
[1739072705088,29.47954197,205.47,205.46,0.35130944]
[1739072706473,29.47954197,205.49,205.46,0.35130944]
[1739072706872,29.47954197,205.47,205.46,0.35130944]
[1739072707773,29.47954197,205.49,205.46,0.35130944]
[1739072708371,29.47954197,205.51,205.48,0.35130944]
[1739072708698,29.47954197,205.51,205.46,0.35130944]
[1739072709500,29.47954197,205.47,205.46,0.35130944]
[1739072709816,29.47954197,205.47,205.39,0.35130944]
[1739072710100,29.47954197,205.41,205.37,0.35130944]
[1739072710272,29.47954197,205.38,205.33,0.35130944]
[1739072710677,1.6518,205.45,205.32,0.063]
[1739072710678,29.47954197,205.34,205.32,0.063]
[1739072711817,34.34964197,205.34,205.32,0.063]
[1739072712002,42.8913905,205.33,205.25,0.063]
[1739072712296,29.47954197,205.26,205.25,0.063]
[1739072712502,35.77514197,205.26,205.25,0.063]
[1739072712900,1.6518,205.29,205.27,0.35130944]
[1739072713084,6.2956,205.33,205.29,0.35130944]
[1739072713085,35.77514197,205.33,205.29,0.35130944]
[1739072713486,35.77514197,205.33,205.31,0.35130944]
[1739072713487,6.2956,205.33,205.31,0.35130944]
[1739072713702,1.6518,205.37,205.36,0.35130944]
[1739072714120,31.13134197,205.37,205.36,0.35130944]
[1739072714404,31.13134197,205.37,205.34,0.35130944]
[1739072714585,29.47954197,205.35,205.32,0.35130944]
[1739072715180,29.47954197,205.35,205.33,0.12549]
[1739072715386,31.13134197,205.37,205.34,0.35130944]
[1739072715790,31.13134197,205.37,205.36,0.35130944]
[1739072716002,31.13134197,205.37,205.33,0.35130944]
[1739072716211,29.47954197,205.35,205.31,0.35130944]
[1739072716406,29.47954197,205.32,205.25,0.41430944]
[1739072716700,29.47954197,205.27,205.25,0.063]
[1739072716904,6.2956,205.26,205.25,0.063]
[1739072717093,6.2956,205.26,205.19,0.35130944]
[1739072717285,29.47954197,205.22,205.21,0.35130944]
[1739072717498,29.47954197,205.22,205.1,30.47954197]
[1739072717499,29.47954197,205.22,205.19,0.35130944]
[1739072717707,29.47954197,205.2,205.13,0.35130944]
[1739072717900,29.47954197,205.15,205.11,0.35130944]
[1739072718104,29.47954197,205.13,205.08,0.35130944]
[1739072718410,29.47954197,205.13,205.03,87.58383463]
[1739072718411,29.47954197,205.1,205.05,0.35130944]
[1739072718588,29.47954197,205.1,205.07,0.35130944]
[1739072718790,29.47954197,205.1,205.09,0.35130944]
[1739072718992,29.47954197,205.14,205.13,0.35130944]
[1739072719194,29.47954197,205.14,205.1,0.063]
[1739072719394,29.47954197,205.11,205.1,0.063]
[1739072719809,4.8756,205.1,205.05,0.35130944]
[1739072720007,29.47954197,205.06,205.03,58.10429266]
[1739072720309,29.47954197,205.04,205.03,58.10429266]
[1739072720516,29.47954197,205.04,205.03,58.4556021]
[1739072720812,29.47954197,205.08,205.05,0.35130944]
[1739072721036,29.47954197,205.06,205.03,58.10429266]
[1739072721327,29.47954197,205.1,205.03,58.10429266]
[1739072721328,29.47954197,205.04,205.03,58.10429266]
[1739072721828,4.8758,205.1,205.03,58.10429266]
[1739072722035,29.47954197,205.08,205.04,0.35130944]
[1739072722205,29.47954197,205.15,205.1,0.35130944]
[1739072722505,30.12823253,205.2,205.1,0.35130944]
[1739072722506,29.47954197,205.17,205.1,0.35130944]
[1739072722709,20.0,205.08,204.97,0.35130944]
[1739072722887,29.47954197,205.04,205.01,0.47679944]
[1739072723088,29.47954197,205.08,205.05,0.60228944]
[1739072723398,29.47954197,205.08,205.05,0.35130944]
[1739072723591,29.47954197,205.12,205.11,0.35130944]
[1739072723789,29.47954197,205.14,205.11,0.35130944]
[1739072723990,29.47954197,205.12,205.11,0.35130944]
[1739072724391,29.47954197,205.16,205.15,0.35130944]
[1739072724605,29.47954197,205.2,205.16,0.25098]
[1739072724824,29.47954197,205.28,205.26,0.12549]
[1739072725122,29.47954197,205.28,205.18,0.35130944]
[1739072725287,29.47954197,205.2,205.18,0.35130944]
[1739072725686,41.43863253,205.3,205.21,0.60228944]
[1739072725687,29.47954197,205.24,205.21,0.60228944]
[1739072725917,29.47954197,205.28,205.27,0.47679944]
[1739072726106,29.47954197,205.3,205.29,0.47679944]
[1739072726300,29.47954197,205.32,205.29,0.47679944]
[1739072726598,4.8701,205.34,205.29,0.35130944]
[1739072726806,58.95908394,205.3,205.23,0.35130944]
[1739072727107,29.47954197,205.24,205.21,0.35130944]
[1739072727322,29.47954197,205.3,205.21,0.60228944]
[1739072727323,29.47954197,205.22,205.21,0.60228944]
[1739072727489,29.47954197,205.22,205.18,0.35130944]
[1739072728015,29.47954197,205.26,205.25,0.35130944]
[1739072728197,29.47954197,205.3,205.27,0.35130944]
[1739072729101,29.47954197,205.28,205.22,0.35130944]
[1739072729308,29.47954197,205.26,205.22,0.35130944]
[1739072729507,29.47954197,205.28,205.25,0.25098]
[1739072729717,29.47954197,205.26,205.25,0.12549]
[1739072729928,29.47954197,205.3,205.28,0.12549]
[1739072730118,29.47954197,205.36,205.33,0.35130944]
[1739072730318,1.5588,205.43,205.39,0.35130944]
[1739072730319,29.47954197,205.4,205.39,0.35130944]
[1739072730522,29.47954197,205.42,205.39,0.35130944]
[1739072730696,29.47954197,205.4,205.39,0.35130944]
[1739072730894,29.47954197,205.42,205.4,0.25098]
[1739072731103,29.47954197,205.46,205.44,0.35130944]
[1739072731319,29.47954197,205.46,205.39,0.35130944]
[1739072731616,29.47954197,205.41,205.39,0.35130944]
[1739072731919,29.47954197,205.41,205.37,0.35130944]
[1739072732108,29.47954197,205.39,205.37,0.35130944]
[1739072732418,29.47954197,205.39,205.38,0.25098]
[1739072732716,29.47954197,205.41,205.38,0.25098]
[1739072732914,34.34744197,205.43,205.38,0.25098]
[1739072733125,34.34744197,205.43,205.39,0.35130944]
[1739072734222,29.47954197,205.45,205.42,0.47679944]
[1739072734425,29.47954197,205.49,205.47,0.35130944]
[1739072734607,29.47954197,205.49,205.44,0.35130944]
[1739072734811,29.47954197,205.46,205.41,0.35130944]
[1739072735013,29.47954197,205.43,205.4,0.12549]
[1739072735403,29.47954197,205.41,205.39,0.35130944]
[1739072735715,29.47954197,205.43,205.41,0.35130944]
[1739072735900,17.0324,205.49,205.37,0.12549]
[1739072735901,29.47954197,205.45,205.43,0.35130944]
[1739072736103,34.34724197,205.44,205.4,0.25098]
[1739072736321,29.47954197,205.42,205.37,0.35130944]
[1739072736514,29.47954197,205.38,205.37,0.35130944]
[1739072736707,29.47954197,205.4,205.37,0.35130944]
[1739072737124,1.0,205.54,205.45,0.35130944]
[1739072737315,29.47954197,205.49,205.47,0.35130944]
[1739072737520,29.47954197,205.51,205.48,0.12549]
[1739072737918,29.47954197,205.53,205.51,0.35130944]
[1739072738112,40.89184197,205.55,205.51,0.35130944]
[1739072738322,29.47954197,205.53,205.49,0.35130944]
[1739072738510,29.47954197,205.51,205.49,0.35130944]
[1739072739125,29.47954197,205.5,205.43,0.35130944]
[1739072739311,29.47954197,205.45,205.43,0.35130944]
[1739072739512,29.47954197,205.47,205.43,0.35130944]
[1739072739932,29.47954197,205.51,205.49,0.35130944]
[1739072740118,29.47954197,205.53,205.49,0.35130944]
[1739072740315,36.02684197,205.55,205.51,0.35130944]
[1739072741029,29.50954197,205.57,205.52,0.25098]
[1739072741341,29.50954197,205.57,205.51,0.35130944]
[1739072741342,29.47954197,205.55,205.51,0.35130944]
[1739072742328,29.47954197,205.55,205.53,0.35130944]
[1739072742824,0.03,205.57,205.55,0.35130944]
[1739072743131,0.03,205.57,205.56,0.12549]
[1739072743344,4.8945,205.57,205.55,0.35130944]
[1739072743543,34.37424197,205.57,205.55,0.35130944]
[1739072743844,34.37424197,205.57,205.52,0.35130944]
[1739072744028,29.47954197,205.53,205.5,0.35130944]
[1739072744326,29.47954197,205.55,205.51,0.12549]
[1739072744534,4.865,205.55,205.52,0.35130944]
[1739072744713,0.03,205.57,205.52,0.35130944]
[1739072744930,0.03,205.57,205.56,0.47679944]
[1739072745129,0.03,205.57,205.56,0.35130944]
[1739072745434,0.03,205.57,205.56,0.47679944]
[1739072745729,0.03,205.57,205.56,0.60228944]
[1739072746034,0.03,205.57,205.56,43.49367994]
[1739072746631,0.03,205.57,205.56,0.60228944]
[1739072746815,0.03,205.57,205.56,0.35130944]
[1739072747020,29.50954197,205.57,205.54,0.35130944]
[1739072747342,29.47954197,205.55,205.51,0.35130944]
[1739072747641,0.03,205.57,205.51,0.35130944]
[1739072747642,29.47954197,205.53,205.51,0.35130944]
[1739072748135,29.47954197,205.56,205.52,0.12549]
[1739072748315,34.34444197,205.56,205.52,0.25098]
[1739072748514,0.03,205.57,205.56,0.35130944]
[1739072748705,0.03,205.57,205.56,0.60228944]
[1739072748906,0.03,205.57,205.56,30.08183141]
[1739072749408,0.03,205.57,205.56,0.35130944]
[1739072749717,4.8945,205.57,205.56,0.35130944]
[1739072750115,34.37404197,205.57,205.54,0.35130944]
[1739072750311,34.37404197,205.57,205.55,0.12549]
[1739072750509,0.03,205.57,205.56,0.47679944]
[1739072750711,0.03,205.57,205.56,0.60228944]
[1739072751134,0.03,205.57,205.56,0.47679944]
[1739072751328,0.03,205.57,205.48,0.7296009]
[1739072751329,29.50954197,205.57,205.54,0.35130944]
[1739072751954,29.50954197,205.57,205.56,30.08183141]
[1739072751955,0.03,205.57,205.56,30.08183141]
[1739072752317,0.03,205.57,205.56,0.60228944]
[1739072752626,0.03,205.57,205.54,0.35130944]
[1739072752832,29.47954197,205.56,205.54,0.35130944]
[1739072753035,0.03,205.57,205.54,0.35130944]
[1739072753647,0.03,205.57,205.55,0.12549]
[1739072753830,0.03,205.57,205.56,0.47679944]
[1739072754225,0.03,205.57,205.56,0.60228944]
[1739072755051,0.03,205.57,205.56,0.47679944]
[1739072755230,0.03,205.57,205.53,0.35130944]
[1739072755231,29.50954197,205.57,205.53,0.35130944]
[1739072755549,0.03,205.57,205.56,0.35130944]
[1739072755719,0.03,205.57,205.56,0.60228944]
[1739072756248,0.03,205.57,205.56,43.49367994]
[1739072756437,0.03,205.57,205.56,48.35837994]
[1739072756847,35.84344197,205.69,205.66,0.35130944]
[1739072757048,0.03,205.72,205.71,0.60228944]
[1739072757248,0.03,205.72,205.71,30.08183141]
[1739072757556,0.03,205.72,205.71,44.22273267]
[1739072757843,0.03,205.72,205.71,30.81088414]
[1739072758052,0.03,205.72,205.71,0.35130944]
[1739072758234,0.03,205.72,205.69,0.35130944]
[1739072758741,29.50954197,205.72,205.69,0.35130944]
[1739072759119,0.03,205.72,205.71,0.60228944]
[1739072759542,0.03,205.72,205.71,30.81085792]
[1739072759732,0.03,205.72,205.71,45.22270645]
[1739072759945,26.02458175,205.78,205.77,43.49367994]
[1739072760131,26.02458175,205.78,205.77,30.08183141]
[1739072760825,26.02458175,205.78,205.77,43.49367994]
[1739072761652,26.02458175,205.78,205.77,44.49367994]
[1739072761923,26.02458175,205.78,205.77,44.22236939]
[1739072762164,26.02458175,205.78,205.77,45.22236939]
[1739072762450,26.02458175,205.78,205.77,44.22236939]
[1739072762451,25.89918175,205.78,205.77,44.22236939]
[1739072762651,25.89918175,205.78,205.77,43.49367994]
[1739072762954,25.89918175,205.78,205.77,0.35130944]
[1739072763451,25.89918175,205.78,205.77,30.08183141]
[1739072763624,25.89918175,205.78,205.77,43.49367994]
[1739072763823,25.89918175,205.78,205.77,44.49367994]
[1739072764126,25.89918175,205.78,205.77,46.22233994]
[1739072764327,25.89918175,205.78,205.77,45.22233994]
[1739072764545,25.89918175,205.78,205.77,44.22233994]
[1739072764725,25.89918175,205.78,205.77,43.49367994]
[1739072765048,25.89918175,205.78,205.77,0.60228944]
[1739072765227,25.89918175,205.78,205.77,44.49367994]
[1739072765438,25.89918175,205.78,205.77,50.08217176]
[1739072766549,25.89918175,205.78,205.77,0.41430944]
[1739072766935,25.89918175,205.78,205.77,0.66528944]
[1739072767336,25.89918175,205.78,205.77,14.07713797]
[1739072768859,25.89918175,205.78,205.77,0.66528944]
[1739072769232,25.89918175,205.78,205.77,0.41430944]
[1739072769829,25.89918175,205.78,205.77,0.66528944]
[1739072770144,25.89918175,205.78,205.77,48.41637994]
[1739072770547,25.89918175,205.78,205.77,78.89592191]
[1739072770548,8.175e-05,205.78,205.77,78.89592191]
[1739072771156,17.246416,205.86,205.85,0.60228944]
[1739072771446,17.246416,205.86,205.85,30.08183141]
[1739072772346,17.246416,205.86,205.85,30.81023421]
[1739072772653,0.7,205.95,205.94,0.35130944]
[1739072772860,0.7,205.95,205.94,29.83085141]
[1739072773044,0.7,205.95,205.94,30.08183141]
[1739072773232,0.7,205.95,205.94,0.35130944]
[1739072774437,30.17954197,205.95,205.94,0.35130944]
[1739072774637,0.7,205.95,205.94,0.35130944]
[1739072775144,0.7,205.95,205.94,29.83085141]
[1739072775541,0.7,205.95,205.94,30.08183141]
[1739072776044,0.7,205.95,205.94,0.60228944]
[1739072776251,0.7,205.95,205.94,0.35130944]
[1739072777046,30.17954197,205.95,205.92,0.35130944]
[1739072777356,29.47954197,205.93,205.89,0.35130944]
[1739072777668,29.47954197,205.9,205.89,0.35130944]
[1739072777854,29.47954197,205.92,205.89,0.35130944]
[1739072778053,29.47954197,205.94,205.89,0.35130944]
[1739072778361,29.47954197,205.93,205.91,0.35130944]
[1739072778535,0.7,205.95,205.94,0.35130944]
[1739072778865,0.7,205.95,205.94,29.83085141]
[1739072778866,0.73,205.95,205.94,29.83085141]
[1739072779053,0.73,205.95,205.94,0.35130944]
[1739072779575,5.5855,205.95,205.92,0.35130944]
[1739072779777,0.73,205.95,205.92,0.35130944]
[1739072780065,0.73,205.95,205.94,0.35130944]
[1739072780966,0.73,205.95,205.94,0.60228944]
[1739072781144,0.73,205.95,205.94,30.80995095]
[1739072781664,0.73,205.95,205.94,1.33040898]
[1739072781842,0.73,205.95,205.94,30.80995095]
[1739072783240,0.73,205.95,205.94,44.22179948]
[1739072783463,0.73,205.95,205.94,45.22179948]
[1739072783668,0.73,205.95,205.94,30.80995095]
[1739072784371,0.73,205.95,205.94,0.35130944]
[1739072785871,0.73,205.95,205.94,30.08183141]
[1739072786345,0.73,205.95,205.94,49.07740197]
[1739072787162,35.06504197,205.95,205.92,0.35130944]
[1739072787367,35.06504197,205.95,205.94,0.35130944]
[1739072787576,35.06504197,205.95,205.92,0.35130944]
[1739072787874,29.47954197,205.94,205.92,0.35130944]
[1739072788062,43.13654197,205.95,205.92,0.35130944]
[1739072788460,29.47954197,205.94,205.92,0.35130944]
[1739072788653,43.13654197,205.95,205.92,0.35130944]
[1739072788854,0.73,205.95,205.94,0.35130944]
[1739072789272,0.73,205.95,205.94,0.60228944]
[1739072790471,0.73,205.95,205.94,0.35130944]
[1739072790658,35.06504197,205.95,205.92,0.35130944]
[1739072790852,29.47954197,205.94,205.92,0.35130944]
[1739072791751,34.33554197,205.93,205.92,0.35130944]
[1739072792161,34.33554197,205.93,205.9,0.35130944]
[1739072792859,4.856,205.93,205.9,0.35130944]
[1739072793060,34.33554197,205.93,205.9,0.35130944]
[1739072793371,29.47954197,205.91,205.88,0.35130944]
[1739072793584,29.47954197,205.89,205.86,0.41430944]
[1739072793785,4.8574,205.87,205.86,0.41430944]
[1739072794364,1.5624,205.89,205.86,0.41430944]
[1739072794573,6.4195,205.89,205.86,0.41430944]
[1739072794768,24.33032034,205.88,205.86,0.41430944]
[1739072795087,6.1993,205.94,205.92,0.35130944]
[1739072795851,11.0551,205.94,205.92,0.35130944]
[1739072796270,11.0551,205.94,205.9,0.35130944]
[1739072796464,29.18612034,205.94,205.88,0.35130944]
[1739072796674,29.45582404,205.93,205.9,0.35130944]
[1739072796862,29.45582404,205.93,205.88,0.35130944]
[1739072797282,29.45582404,205.91,205.88,0.35130944]
[1739072797460,29.45582404,205.89,205.86,0.063]
[1739072797868,4.8571,205.88,205.86,0.063]
[1739072798062,2.5624,205.86,205.79,0.35130944]
[1739072798379,2.5624,205.86,205.77,0.063]
[1739072798380,29.45582404,205.8,205.77,0.063]
[1739072798687,29.45582404,205.78,205.77,0.063]
[1739072798878,29.45582404,205.8,205.78,0.35130944]
[1739072799056,6.1993,205.81,205.8,0.35130944]
[1739072799374,29.45582404,205.84,205.83,0.35130944]
[1739072799678,1.5624,205.86,205.85,0.35130944]
[1739072799881,6.42,205.86,205.85,0.35130944]
[1739072800089,1.5624,205.86,205.85,0.35130944]
[1739072800585,31.01822404,205.86,205.85,0.35130944]
[1739072801395,1.5624,205.86,205.85,0.35130944]
[1739072802681,31.01822404,205.86,205.82,0.35130944]
[1739072802872,29.45582404,205.83,205.8,0.35130944]
[1739072803072,29.45582404,205.81,205.8,0.35130944]
[1739072803380,6.42,205.86,205.8,0.35130944]
[1739072803381,29.45582404,205.83,205.8,0.35130944]
[1739072803561,29.45582404,205.85,205.82,0.35130944]
[1739072803767,1.5624,205.86,205.84,0.35130944]
[1739072804085,29.45582404,205.85,205.81,0.35130944]
[1739072804286,29.45582404,205.82,205.81,0.35130944]
[1739072804999,29.45582404,205.82,205.79,0.35130944]
[1739072805287,29.45582404,205.8,205.77,0.063]
[1739072805471,29.45582404,205.78,205.77,0.41430944]
[1739072806075,29.45582404,205.78,205.77,0.063]
[1739072806784,29.45582404,205.79,205.78,0.35130944]
[1739072807989,34.31512404,205.79,205.78,0.35130944]
[1739072808190,29.45582404,205.79,205.78,0.35130944]
[1739072810778,34.31512404,205.79,205.77,0.063]
[1739072811090,29.45582404,205.78,205.77,0.063]
[1739072812366,2.21109056,205.86,205.78,0.35130944]
[1739072812367,29.45582404,205.82,205.78,0.35130944]
[1739072812668,29.45582404,205.84,205.81,0.35130944]
[1739072812887,34.31372404,205.85,205.81,0.35130944]
[1739072813083,29.45582404,205.83,205.81,0.35130944]
[1739072813470,29.45582404,205.82,205.81,0.35130944]
[1739072814692,34.31442404,205.82,205.78,0.35130944]
[1739072815000,29.45582404,205.79,205.77,0.063]
[1739072815198,29.45582404,205.78,205.77,0.063]
[1739072816387,29.45582404,205.8,205.78,0.35130944]
[1739072816587,18.15098471,205.79,205.77,0.063]
[1739072816795,18.15098471,205.78,205.77,0.063]
[1739072816978,6.6498,205.75,205.67,0.35130944]
[1739072817181,18.15098471,205.7,205.67,0.35130944]
[1739072818299,18.15098471,205.71,205.67,0.35130944]
[1739072818786,6.4265,205.73,205.72,0.35130944]
[1739072819192,6.4265,205.73,205.7,0.35130944]
[1739072819396,18.15098471,205.71,205.7,0.35130944]
[1739072819602,19.71678471,205.73,205.7,0.35130944]
[1739072819775,18.15098471,205.72,205.7,0.35130944]
[1739072820283,19.71678471,205.73,205.72,0.35130944]
[1739072820900,18.15098471,205.77,205.74,0.35130944]
[1739072821200,6.4303,205.8,205.79,0.35130944]
[1739072821981,1.5713,205.8,205.79,0.35130944]
[1739072822993,19.72228471,205.85,205.84,0.35130944]
[1739072823196,1.5713,205.85,205.84,0.35130944]
[1739072823391,0.03,205.86,205.84,18.50229415]
[1739072824598,0.03,205.86,205.85,4.8579]
[1739072824907,0.03,205.86,205.84,0.35130944]
[1739072825200,18.18098471,205.86,205.84,0.35130944]
[1739072826201,18.15098471,205.85,205.82,0.35130944]
[1739072826601,4.8581,205.84,205.82,0.35130944]
[1739072826803,8.0401,205.82,205.77,0.063]
[1739072827008,18.15098471,205.78,205.77,0.063]
[1739072827204,18.15098471,205.81,205.8,0.35130944]
[1739072827389,8.0401,205.82,205.8,0.35130944]
[1739072827595,4.8581,205.84,205.8,0.35130944]
[1739072827790,23.03878471,205.86,205.84,0.35130944]
[1739072827979,4.8878,205.86,205.84,0.35130944]
[1739072828183,0.03,205.86,205.84,0.35130944]
[1739072828482,18.15098471,205.85,205.81,0.35130944]
[1739072828690,23.03868471,205.86,205.81,0.35130944]
[1739072828905,0.03,205.86,205.84,0.35130944]
[1739072829206,0.03,205.86,205.8,18.15098471]
[1739072829386,18.15098471,205.83,205.79,0.35130944]
[1739072830401,1.0,205.84,205.82,0.35130944]
[1739072830603,18.15098471,205.83,205.78,0.35130944]
[1739072830796,23.00958471,205.82,205.78,0.35130944]
[1739072830996,23.00958471,205.82,205.81,0.35130944]
[1739072831181,23.00918471,205.84,205.83,0.35130944]
[1739072831585,23.03878471,205.86,205.83,0.35130944]
[1739072831799,0.03,205.86,205.85,0.35130944]
[1739072834621,0.03,205.86,205.85,18.50229415]
[1739072835686,0.03,205.86,205.85,19.50229415]
[1739072835999,0.03,205.86,205.85,19.75327415]
[1739072836201,0.03,205.86,205.85,18.50229415]
[1739072836415,0.03,205.86,205.85,0.35130944]
[1739072837109,18.18098471,205.86,205.85,0.35130944]
[1739072837302,18.18098471,205.86,205.83,0.35130944]
[1739072837696,18.18098471,205.86,205.85,0.35130944]